[Event "13th All African Rapid-ch Men 2024"]
[Site "Accra"]
[Date "2024.03.10"]
[Round "4.11"]
[White "Yacouba, Souley Moussa"]
[Black "Ntamatungiro, Wilfried"]
[Result "0-1"]
[ECO "D11"]
[WhiteElo "1645"]
[BlackElo "1905"]
[Annotator "RC"]
[PlyCount "52"]
[EventDate "2024.03.07"]
[EventType "rapid"]
[EventCountry "GHA"]
[SourceTitle "playchess.com"]
[Source "ChessBase"]
[SourceQuality "1"]
[TimeControl "900+10"]

1. d4 {[%emt 0:00:05]} d5 {[%emt 0:00:05]} 2. Bf4 {[%emt 0:00:04]} c6 {[%emt 0:00:03]} 3. e3 {[%emt 0:00:40]} Nf6 {[%emt 0:00:14]} 4. Nf3 {[%emt 0:00:10]} Bg4 {[%emt 0:00:05]} 5. c4 {[%emt 0:00:11]} e6 {[%emt 0:00:07]} 6. Nbd2 {[%emt 0:00:26]} Bd6 {[%emt 0:00:13]} 7. Bg3 {[%emt 0:00:14]} Bxg3 {[%emt 0:00:08]} 8. hxg3 {[%emt 0:00:03]} Nbd7 {[%emt 0:00:06]} 9. Qb3 {[%emt 0:00:16]} Qc7 {[%emt 0:00:16]} 10. Bd3 {[%emt 0:00:14]} O-O {[%emt 0:00:32]} 11. Qc2 {[%emt 0:01:33]} g6 {[%emt 0:00:41]} 12. O-O-O {[%emt 0:03:22]} dxc4 {[%emt 0:00:22]} 13. Bxc4 {[%emt 0:00:28]} e5 {[%emt 0:00:31]} 14. Rde1 {[%emt 0:00:11]} exd4 {[%emt 0:02:49]} 15. Nxd4 {[%emt 0:00:54]} Ne5 {[%emt 0:00:20]} 16. Bb3 {[%emt 0:02:17]} c5 {[%emt 0:02:32]} 17. f3 {[%emt 0:01:58]} Bd7 {[%emt 0:00:20]} 18. Kb1 {[%emt 0:00:46]} Rac8 {[%emt 0:00:08]} 19. Ne2 {[%emt 0:00:35]} c4 {[%emt 0:00:11]} 20. Ba4 {[%emt 0:00:11]} b5 {[%emt 0:00:03]} 21. f4 {[%emt 0:00:27]} Nd3 {[%emt 0:00:23]} 22. Qc3 {[%emt 0:00:35]} Nd5 {[%emt 0:00:48]} 23. Qd4 {[%emt 0:01:42]} Nxe1 {[%emt 0:00:37]} 24. Qxd5 {[%emt 0:00:30]} bxa4 {[%emt 0:00:05]} 25. Rxe1 {[%emt 0:00:15]} Bf5+ {[%emt 0:00:11]} 26. e4 {[%emt 0:00:37]} Rfd8 {[%emt 0:00:07]} 0-1

[Event "13th All African Rapid-ch Men 2024"]
[Site "Accra"]
[Date "2024.03.10"]
[Round "5.1"]
[White "Amin, Bassem"]
[Black "Zhemba, Jemusse"]
[Result "1-0"]
[ECO "D02"]
[WhiteElo "2670"]
[BlackElo "2226"]
[Annotator "TA"]
[PlyCount "85"]
[EventDate "2024.03.07"]
[EventType "rapid"]
[EventCountry "GHA"]
[SourceTitle "playchess.com"]
[Source "ChessBase"]
[SourceQuality "1"]
[TimeControl "900+10"]

{[%evp 15,85,41,52,45,46,29,53,32,37,36,26,37,132,132,113,135,130,134,132,115,166,183,168,168,188,195,195,193,289,291,348,245,251,195,256,250,327,327,322,218,222,220,221,217,230,220,264,249,384,395,441,424,450,449,540,537,540,533,558,558,547,547,738,647,779,777,870,738,722,723,1187,1200]} 1. Nf3 {[%emt 0:00:03]} Nf6 {[%emt 0:00:08]} 2. g3 {[%emt 0:00:02]} d5 {[%emt 0:00:04]} 3. Bg2 {[%emt 0:00:02]} c5 {[%emt 0:00:08]} 4. O-O {[%emt 0:00:03]} Nc6 {[%emt 0:00:09]} 5. d4 {[%emt 0:00:23]} cxd4 {[%emt 0:00:56]} 6. Nxd4 {[%emt 0:00:02]} e5 {[%emt 0:00:08]} 7. Nxc6 {[%emt 0:00:05]} bxc6 {[%emt 0:00:04]} 8. c4 {[%emt 0:00:02]} Be6 {[%emt 0:00:56]} 9. Nc3 {[%emt 0:00:05]} Qd7 {[%emt 0:00:44]} 10. Qa4 {[%emt 0:01:05]} Rc8 {[%emt 0:00:33]} 11. cxd5 {[%emt 0:00:51] White is slightly better.} cxd5 {[%emt 0:00:10]} 12. Qxd7+ {[%emt 0:00:07]} Kxd7 {[%emt 0:00:05]} 13. Rd1 {[%emt 0:00:04][%cal Oc1g5]} d4 {[%emt 0:02:00]} (13... Bc5 $14) 14. e3 $16 {[%emt 0:00:09]} Bg4 {[%emt 0:01:31]} 15. f3 {[%emt 0:00:44]} Be6 {[%emt 0:01:07]} 16. exd4 {[%emt 0:00:22]} exd4 {[%emt 0:00:06]} 17. Be3 {[%emt 0:00:09]} ({Don't take} 17. Rxd4+ Ke8 $16) 17... Ke8 {[%emt 0:02:40]} (17... Bc5 $16) 18. Bxd4 $18 {[%emt 0:00:07]} Bc5 {[%emt 0:00:09]} 19. Nb5 {[%emt 0:03:00]} Ke7 {[%emt 0:02:49]} 20. Nxa7 {[%emt 0:00:33]} Bxd4+ {[%emt 0:00:07]} 21. Rxd4 {[%emt 0:00:02]} Rc2 {[%emt 0:00:03] [#]} (21... Rc7 $142) 22. f4 $1 {[%emt 0:00:13] Black must now prevent Nc6+.} Ng4 {[%emt 0:01:05]} 23. Re1 {[%emt 0:03:37]} g6 {[%emt 0:01:35]} 24. h3 {[%emt 0:00:13]} Nh6 {[%emt 0:00:07]} (24... Nf6 $142 25. Nc6+ Kf8) 25. g4 {[%emt 0:00:11] Hoping for a4.} Re8 {[%emt 0:01:23]} 26. Rb4 {[%emt 0:03:26]} Kf8 {[%emt 0:00:16]} 27. Nb5 {[%emt 0:00:02] Strongly threatening Nd4.} Bxa2 {[%emt 0:00:21]} 28. Rxe8+ {[%emt 0:00:21]} Kxe8 {[%emt 0:00:00] [#]} 29. Nc3 $1 {[%emt 0:00:30]} Be6 {[%emt 0:00:03] [#]} 30. f5 $1 {[%emt 0:00:08][%mdl 512]} Rc1+ {[%emt 0:00:07]} (30... Nxf5 31. gxf5) 31. Kh2 {[%emt 0:00:05]} gxf5 {[%emt 0:00:04]} (31... Nxf5 $142 32. gxf5 Bxf5 33. Rb8+ Ke7 34. Rb7+ Kf6 35. Ne4+ Bxe4 36. Bxe4 Rd1) 32. g5 {[%emt 0:00:02]} Ng4+ {[%emt 0:00:25]} 33. hxg4 {[%emt 0:00:01] White is clearly winning.} fxg4 {[%emt 0:00:00]} 34. Ne4 {[%emt 0:00:43]} Rc2 {[%emt 0:00:21]} 35. Kg3 {[%emt 0:00:04]} Kd7 {[%emt 0:00:12]} 36. Rd4+ {[%emt 0:00:43]} Kc7 {[%emt 0:00:15]} 37. Rd2 {[%emt 0:00:04]} Rc1 {[%emt 0:00:04]} 38. Nf6 {[%emt 0:00:20][%csl LRg4,LRh7]} Rc5 {[%emt 0:00:07]} 39. Bd5 {[%emt 0:00:24] Bxe6 would now be deadly.} ({Weaker is} 39. Nxg4 Rxg5 40. Bf3 h5 $16) 39... Bf5 {[%emt 0:00:26]} 40. Bxf7 {[%emt 0:00:13]} Rc1 {[%emt 0:00:03]} 41. Bd5 {[%emt 0:00:40]} Rg1+ {[%emt 0:00:12]} 42. Bg2 {[%emt 0:00:09]} Rb1 {[%emt 0:00:11]} 43. Be4 {[%emt 0:00:19] White took control after the opening.   Weighted Error Value: White=0.12 (very precise) /Black=0.34.  Mistake:       	---       	Black=5      Inaccurate:     	White=1     	Black=2      OK:         	White=19    	Black=10     Best:        	White=3     	Black=1      Strong:       	White=1     	---} 1-0

[Event "13th All African Rapid-ch Men 2024"]
[Site "Accra"]
[Date "2024.03.10"]
[Round "5.2"]
[White "Wanyama, Harold"]
[Black "Paiva, Donaldo"]
[Result "1-0"]
[ECO "E04"]
[WhiteElo "2226"]
[BlackElo "2172"]
[Annotator "RC"]
[PlyCount "53"]
[EventDate "2024.03.07"]
[EventType "rapid"]
[EventCountry "GHA"]
[SourceTitle "playchess.com"]
[Source "ChessBase"]
[SourceQuality "1"]
[TimeControl "900+10"]

1. d4 {[%emt 0:00:05]} Nf6 {[%emt 0:00:01]} 2. c4 {[%emt 0:00:02]} e6 {[%emt 0:00:01]} 3. g3 {[%emt 0:00:03]} d5 {[%emt 0:00:03]} 4. Bg2 {[%emt 0:00:03]} dxc4 {[%emt 0:00:05]} 5. Nf3 {[%emt 0:00:13]} Nc6 {[%emt 0:00:15]} 6. Qa4 {[%emt 0:00:12]} Bb4+ {[%emt 0:00:11]} 7. Bd2 {[%emt 0:00:10]} Nd5 {[%emt 0:00:01]} 8. Bxb4 {[%emt 0:00:13]} Ndxb4 {[%emt 0:00:06]} 9. O-O {[%emt 0:00:54]} Rb8 {[%emt 0:05:19]} 10. Na3 {[%emt 0:00:08]} O-O {[%emt 0:00:20]} 11. Qb5 {[%emt 0:00:03]} b6 {[%emt 0:00:33]} 12. Qxc4 {[%emt 0:00:11]} Ba6 {[%emt 0:00:04]} 13. Nb5 {[%emt 0:00:19]} Qd5 {[%emt 0:01:43]} 14. Qxd5 {[%emt 0:00:03]} Nxd5 {[%emt 0:00:02]} 15. a4 {[%emt 0:00:07]} Ncb4 {[%emt 0:01:04]} 16. Ne5 {[%emt 0:01:05]} c6 {[%emt 0:02:27]} 17. Nxa7 {[%emt 0:00:47]} Bxe2 {[%emt 0:00:03]} 18. Rfc1 {[%emt 0:00:08]} Nf6 {[%emt 0:02:21]} 19. Naxc6 {[%emt 0:00:18]} Nxc6 {[%emt 0:00:02]} 20. Nxc6 {[%emt 0:00:01]} Rb7 {[%emt 0:00:01]} 21. b4 {[%emt 0:00:12]} Nd5 {[%emt 0:00:44]} 22. Ra2 {[%emt 0:01:22]} Bd3 {[%emt 0:00:14]} 23. Rd2 {[%emt 0:01:47]} Bf5 {[%emt 0:00:12]} 24. Re1 {[%emt 0:00:06]} Kh8 {[%emt 0:00:53]} 25. Re5 {[%emt 0:00:53]} Nf6 {[%emt 0:02:07]} 26. h3 {[%emt 0:01:29]} Rc7 {[%emt 0:00:21]} 27. d5 {[%emt 0:00:24]} 1-0

[Event "13th All African Rapid-ch Men 2024"]
[Site "Accra"]
[Date "2024.03.10"]
[Round "5.3"]
[White "Mwali, Chitumbo"]
[Black "Arab, Adlane"]
[Result "1/2-1/2"]
[ECO "E17"]
[WhiteElo "2340"]
[BlackElo "2477"]
[Annotator "TA"]
[PlyCount "97"]
[EventDate "2024.03.07"]
[EventType "rapid"]
[EventCountry "GHA"]
[SourceTitle "playchess.com"]
[Source "ChessBase"]
[SourceQuality "1"]
[TimeControl "900+10"]

{[%evp 16,97,0,-1,0,-46,-56,-108,-96,-105,-112,-125,-115,-113,-102,-120,-102,-158,-136,-132,-139,-132,-110,-100,-100,-103,-104,-100,-96,-113,-91,-98,-95,-88,-28,-25,-26,-20,-25,-63,-56,-66,-62,-64,-97,-114,-68,-54,-60,-92,0,0,1,0,0,0,7,0,0,0,0,0,2,0,0,0,0,0,0,0,0,0,0,0,0,0,0,0,0,0,0,0,0,0]} 1. c4 {[%emt 0:00:01]} e6 {[%emt 0:00:02]} 2. g3 {[%emt 0:00:02]} d5 {[%emt 0:00:06]} 3. Bg2 {[%emt 0:00:02]} Nf6 {[%emt 0:00:04]} 4. Nf3 {[%emt 0:00:02]} Be7 {[%emt 0:00:10]} 5. O-O {[%emt 0:00:03]} O-O {[%emt 0:00:02]} 6. b3 {[%emt 0:00:02][%cal Bb2b3,Bb3c4][%mdl 32]} b6 {[%emt 0:00:14]} 7. Bb2 {[%emt 0:00:44]} Bb7 {[%emt 0:00:02]} 8. d4 {[%emt 0:03:19]} dxc4 {[%emt 0:00:50]} 9. bxc4 {[%emt 0:00:05]} c5 {[%emt 0:00:08]} 10. d5 {[%emt 0:06:45]} exd5 $15 {[%emt 0:00:41]} 11. Ne5 {[%emt 0:01:12]} (11. cxd5 $15 Nxd5 (11... Qxd5 12. Nc3 $15) 12. Ne5) 11... Nbd7 $17 {[%emt 0:02:08] Schwarz steht besser.} 12. Nxd7 {[%emt 0:02:56]} Qxd7 {[%emt 0:00:02]} 13. cxd5 {[%emt 0:00:00]} Nxd5 {[%emt 0:03:28]} 14. e4 {[%emt 0:01:08]} Nf6 {[%emt 0:00:05]} 15. Nc3 {[%emt 0:00:25]} Rad8 {[%emt 0:00:54]} 16. Qb3 {[%emt 0:00:24]} ({Besser ist} 16. Qxd7 Rxd7 17. e5) 16... Qc6 {[%emt 0:00:33]} 17. Nd5 {[%emt 0:00:10]} Nxd5 {[%emt 0:00:27]} 18. exd5 {[%emt 0:00:02]} Qd6 {[%emt 0:00:28]} 19. Rad1 {[%emt 0:00:11]} Bf6 {[%emt 0:00:13]} 20. Bxf6 {[%emt 0:00:14]} Qxf6 {[%emt 0:00:02]} 21. Rfe1 {[%emt 0:00:03]} Qd6 {[%emt 0:00:22]} 22. Qe3 {[%emt 0:00:21]} Ba6 {[%emt 0:01:17]} 23. Qe7 {[%emt 0:00:10]} Bb5 {[%emt 0:00:40]} 24. Qxa7 {[%emt 0:00:11]} c4 {[%emt 0:00:20]} ({Vorzuziehen ist} 24... Bd7 $17 {Und ...Ra8 würde nun gewinnen.} 25. Qa3 Ra8) 25. Qe7 $11 {[%emt 0:00:16]} Ba4 {[%emt 0:00:05] ...Qxe7 ist eine echte Drohung.} 26. Rc1 {[%emt 0:00:13]} b5 {[%emt 0:00:02]} 27. Qg5 {[%emt 0:00:09]} Rfe8 {[%emt 0:00:11]} 28. Rxe8+ {[%emt 0:00:18]} Rxe8 {[%emt 0:00:02]} 29. h4 {[%emt 0:00:01]} h6 {[%emt 0:00:14]} 30. Qg4 {[%emt 0:00:41] [#]} Qa3 {[%emt 0:00:11] Es drohte Bf3} (30... Qc5 $1 $17 31. Qd7 Re2 32. Qd8+ Kh7) 31. Qf4 $15 {[%emt 0:00:00]} c3 {[%emt 0:00:15]} (31... Qxa2 32. d6 Rf8 33. d7 $11) 32. d6 {[%emt 0:00:00][%cal Bd5d6,Bd6d7][%mdl 32] [#] Und jetzt d7 wäre schön.} c2 {[%emt 0:00:03]} (32... Qxa2 $2 {verliert.} 33. d7 (33. Rxc3 b4 $16) 33... Rf8 (33... Rd8 $2 34. Qc7 $18) 34. Rxc3 $18) (32... Rd8 $1 $17 {[%cal Rd8d6]} 33. Be4 (33. Bd5 $2 Qxd6 34. Qxf7+ Kh8 $17) 33... Qc5 (33... Qxd6 34. Qxd6 Rxd6 35. Rxc3 $11) (33... Rxd6 34. Kg2 $11)) 33. Bd5 $11 {[%emt 0:00:07] Die Stellung ist ausgeglichen.} Rf8 {[%emt 0:00:16]} 34. d7 {[%emt 0:00:03] Tanz auf der Rasierklinge.} Qe7 {[%emt 0:00:18] Lässt Re1 nicht zu} 35. Qc7 {[%emt 0:00:05]} b4 {[%emt 0:00:44]} 36. Bc6 {[%emt 0:00:25]} Bxc6 {[%emt 0:00:34]} 37. Qxc6 {[%emt 0:00:01][%mdl 4096] Endspiel. KQR-KQR} Rd8 {[%emt 0:00:03]} 38. Rxc2 {[%emt 0:00:09]} Rxd7 {[%emt 0:00:04]} 39. Kg2 {[%emt 0:00:02]} h5 {[%emt 0:00:23]} 40. Qf3 {[%emt 0:00:16][%cal Oc2e2]} g6 {[%emt 0:00:03]} 41. Re2 {[%emt 0:00:07]} Qd6 {[%emt 0:00:08]} 42. Re8+ {[%emt 0:00:04]} Kg7 {[%emt 0:00:04]} 43. Qe4 {[%emt 0:00:04]} Ra7 {[%emt 0:00:13]} 44. Qc4 {[%emt 0:00:23]} Rc7 {[%emt 0:00:29]} 45. Qe4 {[%emt 0:00:19]} Ra7 {[%emt 0:00:18]} 46. Qc4 {[%emt 0:00:08]} Rxa2 {[%emt 0:00:19]} 47. Qxa2 {[%emt 0:00:03] Droht Matt per Qa1+.} Qc6+ {[%emt 0:00:01]} 48. Kh2 {[%emt 0:00:01] Beabsichtigt Qa1+ und Matt.} Qxe8 {[%emt 0:00:01]} 49. Qb2+ {[%emt 0:00:00] Und Weiß wird für den zähen Widerstand belohnt.   Gewichteter Fehlerwert: Weiß=0.07 (makellos) /Schwarz=0.10 (sehr präzise) .  Fehler:       	Weiß=3     	Schwarz=3     Ungenau:       	Weiß=2     	---        OK:         	Weiß=14    	Schwarz=17    Bester:       	Weiß=3     	Schwarz=5} 1/2-1/2

[Event "13th All African Rapid-ch Men 2024"]
[Site "Accra"]
[Date "2024.03.10"]
[Round "5.4"]
[White "Silva, David"]
[Black "Rakotomaharo, Fy Antenaina"]
[Result "1/2-1/2"]
[ECO "B22"]
[WhiteElo "2358"]
[BlackElo "2454"]
[Annotator "TA"]
[PlyCount "43"]
[EventDate "2024.03.07"]
[EventType "rapid"]
[EventCountry "GHA"]
[SourceTitle "playchess.com"]
[Source "ChessBase"]
[SourceQuality "1"]
[TimeControl "900+10"]

{[%evp 17,43,10,0,-4,26,23,32,25,27,27,25,0,10,8,13,0,20,8,16,18,43,3,44,38,49,47,39,10]} 1. e4 {[%emt 0:00:01]} c5 {[%emt 0:00:01]} 2. c3 {[%emt 0:00:01]} Nf6 {[%emt 0:00:01]} 3. e5 {[%emt 0:00:01]} Nd5 {[%emt 0:00:01]} 4. d4 {[%emt 0:00:00]} cxd4 {[%emt 0:00:02]} 5. Nf3 {[%emt 0:00:01]} e6 {[%emt 0:00:01]} 6. cxd4 {[%emt 0:00:02]} d6 {[%emt 0:00:01]} 7. Bc4 {[%emt 0:00:03]} Be7 {[%emt 0:00:02]} 8. O-O {[%emt 0:00:37]} O-O {[%emt 0:00:03]} 9. Re1 {[%emt 0:01:09]} Nc6 {[%emt 0:01:20]} 10. Bd2 {[%emt 0:01:03]} Nb6 {[%emt 0:01:04]} 11. Bb3 {[%emt 0:00:10]} dxe5 {[%emt 0:00:04]} 12. dxe5 {[%emt 0:00:02]} Nd4 {[%emt 0:00:04]} 13. Nxd4 {[%emt 0:00:33]} Qxd4 {[%emt 0:00:02]} 14. Qf3 {[%emt 0:00:00]} Nd5 {[%emt 0:03:15]} 15. Bxd5 {[%emt 0:01:43]} Qxd5 {[%emt 0:00:26]} 16. Qg3 {[%emt 0:00:03] [#] And now Bh6 would win.} Kh8 {[%emt 0:02:39]} 17. Bf4 {[%emt 0:01:27]} Bb4 {[%emt 0:02:12]} 18. Nc3 {[%emt 0:00:08]} Bxc3 {[%emt 0:00:01]} 19. Qxc3 {[%emt 0:00:01]} b5 {[%emt 0:00:54] Black is weak on the dark squares} 20. Red1 {[%emt 0:00:31] White is slightly better.} Qc4 {[%emt 0:00:01]} 21. Qxc4 {[%emt 0:00:44]} bxc4 {[%emt 0:00:01]} 22. Bd2 {[%emt 0:02:24] Weighted Error Value: White=0.09 (flawless) /Black=0.15 (very precise) .  Inaccurate:     	White=2     	Black=2      OK:         	White=5     	---} 1/2-1/2

[Event "13th All African Rapid-ch Men 2024"]
[Site "Accra"]
[Date "2024.03.10"]
[Round "5.5"]
[White "KIGIGHA, Bomo Lovet"]
[Black "Rongwane, Gomolemo"]
[Result "0-1"]
[ECO "D79"]
[WhiteElo "2231"]
[BlackElo "2021"]
[Annotator "RC"]
[PlyCount "116"]
[EventDate "2024.03.07"]
[EventType "rapid"]
[EventCountry "GHA"]
[SourceTitle "playchess.com"]
[Source "ChessBase"]
[SourceQuality "1"]
[TimeControl "900+10"]

1. Nf3 {[%emt 0:00:01]} Nf6 {[%emt 0:00:03]} 2. g3 {[%emt 0:00:03]} g6 {[%emt 0:00:18]} 3. Bg2 {[%emt 0:00:02]} Bg7 {[%emt 0:00:01]} 4. d4 {[%emt 0:00:04]} O-O {[%emt 0:00:13]} 5. O-O {[%emt 0:00:02]} d5 {[%emt 0:00:14]} 6. c4 {[%emt 0:00:01]} c6 {[%emt 0:15:21]} 7. cxd5 {[%emt 0:00:02]} cxd5 {[%emt 0:00:00]} 8. Nc3 {[%emt 0:00:02]} Nc6 {[%emt 0:00:00]} 9. Ne5 {[%emt 0:00:02]} e6 {[%emt 0:00:00]} 10. Nxc6 {[%emt 0:00:07]} bxc6 {[%emt 0:00:00]} 11. Bf4 {[%emt 0:00:07]} a5 {[%emt 0:00:00]} 12. Na4 {[%emt 0:00:16]} Nd7 {[%emt 0:00:00]} 13. Rc1 {[%emt 0:00:09]} Ra6 {[%emt 0:00:00]} 14. e4 {[%emt 0:01:02]} Nf6 {[%emt 0:00:00]} 15. e5 {[%emt 0:00:23]} Nd7 {[%emt 0:00:00]} 16. Re1 {[%emt 0:00:01]} Bb7 {[%emt 0:00:00]} 17. Qd2 {[%emt 0:00:09]} Ra8 {[%emt 0:00:00]} 18. b3 {[%emt 0:00:09]} Ba6 {[%emt 0:00:00]} 19. Nc5 {[%emt 0:01:54]} Nxc5 {[%emt 0:00:00]} 20. Rxc5 {[%emt 0:00:02]} Bb7 {[%emt 0:00:00]} 21. Bh6 {[%emt 0:01:03]} Qb6 {[%emt 0:00:00]} 22. Bxg7 {[%emt 0:00:05]} Kxg7 {[%emt 0:00:00]} 23. g4 {[%emt 0:00:05]} a4 {[%emt 0:00:00]} 24. Re3 {[%emt 0:00:02]} h6 {[%emt 0:00:00]} 25. Rh3 {[%emt 0:01:02]} Rh8 {[%emt 0:00:00]} 26. Qf4 {[%emt 0:00:05]} Qd8 {[%emt 0:00:00]} 27. b4 {[%emt 0:00:19]} a3 {[%emt 0:00:00]} 28. Rf3 {[%emt 0:00:24]} Rf8 {[%emt 0:00:00]} 29. Rcc3 {[%emt 0:00:18]} Ra4 {[%emt 0:00:00]} 30. Rb3 {[%emt 0:01:51]} Qe7 {[%emt 0:00:00]} 31. Rh3 {[%emt 0:00:43]} Qg5 {[%emt 0:00:00]} 32. Qxg5 {[%emt 0:01:03]} hxg5 {[%emt 0:00:00]} 33. Rxa3 {[%emt 0:00:02]} Rxb4 {[%emt 0:00:00]} 34. Rhb3 {[%emt 0:00:03]} Rxb3 {[%emt 0:00:00]} 35. Rxb3 {[%emt 0:00:01]} Ba6 {[%emt 0:00:00]} 36. a4 {[%emt 0:02:59]} Ra8 {[%emt 0:00:00]} 37. Bf3 {[%emt 0:00:25]} Bc4 {[%emt 0:00:00]} 38. Rb4 {[%emt 0:00:01]} Ra5 {[%emt 0:00:00]} 39. Bd1 {[%emt 0:01:03]} c5 {[%emt 0:00:00]} 40. dxc5 {[%emt 0:00:01]} Rxc5 {[%emt 0:00:00]} 41. Kg2 {[%emt 0:00:26]} Rc7 {[%emt 0:00:00]} 42. Kf3 {[%emt 0:00:09]} f6 {[%emt 0:00:00]} 43. exf6+ {[%emt 0:01:12]} Kxf6 {[%emt 0:00:00]} 44. Ke3 {[%emt 0:00:01]} Rc6 {[%emt 0:00:00]} 45. Rb8 {[%emt 0:00:46]} Ba6 {[%emt 0:00:31]} 46. Rf8+ {[%emt 0:00:51]} Ke7 {[%emt 0:00:44]} 47. Ra8 {[%emt 0:00:08]} e5 {[%emt 0:00:15]} 48. a5 {[%emt 0:00:36]} Bc4 {[%emt 0:00:52]} 49. Bf3 {[%emt 0:00:34]} Kd6 {[%emt 0:00:13]} 50. Bd1 {[%emt 0:00:28]} d4+ {[%emt 0:00:19]} 51. Kd2 {[%emt 0:00:12]} e4 {[%emt 0:00:08]} 52. Ba4 {[%emt 0:00:16]} Ra6 {[%emt 0:04:38]} 53. Rxa6+ {[%emt 0:00:04]} Bxa6 {[%emt 0:00:00]} 54. Be8 {[%emt 0:00:01]} Ke5 {[%emt 0:00:00]} 55. Bxg6 {[%emt 0:00:08]} Kf4 {[%emt 0:00:00]} 56. Bf5 {[%emt 0:00:02]} Kf3 {[%emt 0:00:00]} 57. Ke1 {[%emt 0:00:02]} e3 {[%emt 0:00:00]} 58. fxe3 {[%emt 0:00:01]} Kxe3 {[%emt 0:00:00]} 0-1

[Event "13th All African Rapid-ch Men 2024"]
[Site "Accra"]
[Date "2024.03.10"]
[Round "5.6"]
[White "Oluka Robert Mcligeyo"]
[Black "Cogan, Nicolas"]
[Result "1/2-1/2"]
[ECO "E10"]
[WhiteElo "2041"]
[BlackElo "2070"]
[Annotator "RC"]
[PlyCount "60"]
[EventDate "2024.03.07"]
[EventType "rapid"]
[EventCountry "GHA"]
[SourceTitle "playchess.com"]
[Source "ChessBase"]
[SourceQuality "1"]
[TimeControl "900+10"]

1. d4 {[%emt 0:03:14]} Nf6 {[%emt 0:00:13]} 2. Nf3 {[%emt 0:00:04]} e6 {[%emt 0:00:03]} 3. c4 {[%emt 0:00:02]} a6 {[%emt 0:00:11]} 4. Nc3 {[%emt 0:00:06]} Bb4 {[%emt 0:00:02]} 5. Bg5 {[%emt 0:00:03]} h6 {[%emt 0:00:19]} 6. Bxf6 {[%emt 0:00:03]} Qxf6 {[%emt 0:00:08]} 7. e3 {[%emt 0:00:02]} c5 {[%emt 0:00:54]} 8. a3 {[%emt 0:00:04]} Bxc3+ {[%emt 0:01:10]} 9. bxc3 {[%emt 0:00:02]} O-O {[%emt 0:00:05]} 10. Be2 {[%emt 0:00:05]} d5 {[%emt 0:00:11]} 11. cxd5 {[%emt 0:00:05]} exd5 {[%emt 0:00:02]} 12. O-O {[%emt 0:00:07]} Nc6 {[%emt 0:02:02]} 13. dxc5 {[%emt 0:00:07]} Be6 {[%emt 0:00:28]} 14. Nd4 {[%emt 0:00:05]} Qe7 {[%emt 0:00:11]} 15. Nxc6 {[%emt 0:00:06]} bxc6 {[%emt 0:00:02]} 16. Qd4 {[%emt 0:00:02]} Bf5 {[%emt 0:00:08]} 17. Bf3 {[%emt 0:01:02]} Rab8 {[%emt 0:00:28]} 18. c4 {[%emt 0:00:20]} dxc4 {[%emt 0:00:25]} 19. Qxc4 {[%emt 0:00:02]} Rb5 {[%emt 0:00:08]} 20. Rfc1 {[%emt 0:00:15]} Qf6 {[%emt 0:00:23]} 21. a4 {[%emt 0:00:12]} Rb2 {[%emt 0:00:11]} 22. Qd4 {[%emt 0:00:24]} Rd8 {[%emt 0:02:47]} 23. Qxf6 {[%emt 0:12:28]} gxf6 {[%emt 0:00:01]} 24. g4 {[%emt 0:00:00]} Be6 {[%emt 0:02:07]} 25. Rd1 {[%emt 0:00:00]} Rxd1+ {[%emt 0:01:11]} 26. Rxd1 {[%emt 0:00:00]} Rc2 {[%emt 0:00:12]} 27. Rd6 {[%emt 0:00:00]} Rc1+ {[%emt 0:01:21]} 28. Kg2 {[%emt 0:00:00]} Rxc5 {[%emt 0:00:04]} 29. h3 {[%emt 0:00:00]} Rc4 {[%emt 0:01:20]} 30. Rd4 {[%emt 0:00:00]} Rc1 {[%emt 0:01:03]} 1/2-1/2